Cogmind - Beta 17 @@@ ROGUE MODE // 2026.07.07 @ 08:28:11 // AFD2020/Player2 Player: Invalid Extension Result: Self-destructed Performance ------------- Evolutions (7) 3500 Regions Visited (24) 4800 Robots Destroyed (116) 580 Value Destroyed (4420) 4420 Prototype IDs (48) 960 Alien Tech Used (0) 0 Bonus (-7623) -7623 TOTAL SCORE: 6637 Bonus ------- High Alert Combat Kills 195 Follower Combat Kills 2901 Aligned with FarCom 300 Met Data Miner 300 MAIN.C Attacked Warlord 500 Warlord Defense Kills 100 Friendly Fire -11919 Cogmind --------- Core Integrity 1068/1300 Matter 281/300 Energy 700/700 System Corruption 0% Temperature Cool (0) Movement Rolling (120) Ox2 Location -3/Research Parts ------- > --- POWER (2) -------- Vortex Chain Reactor > --- PROPULSION (4) --- Wheel Compact Wheel Armored Huge Wheel > --- UTILITY (9) ------ Huge Storage Unit Spectral Analyzer Tactical Coordination Suite Tactical Coordination Suite Improved Target Analyzer Advanced Transmission Jammer Improved Utility Shielding Hacking Suite System Shield > --- WEAPON (6) ------- Enhanced Autogun Enhanced Autogun Enhanced Autogun Enhanced Autogun Enhanced Autogun > --- INVENTORY (25) --- Flying Fortress v7 Experimental Coolant Injector Improved Armor Integrity Analyzer Improved Particle Charger Weapon Cycler Weapon Cycler Advanced Weapon Cycler Improved Phase Shifter Authchip [R/Combat] Authchip [R/Combat] Authchip [R/Combat] Authchip [R/Combat] Minesniffer Drone Bay (10/10) Vortex Rail (40) Vortex Rail (40) Vortex Cannon (26) Vortex Cannon (26) Enhanced Autogun Enhanced Autogun Vortex Lance (36) Peak State ------------ > --- POWER ------------ Vortex Chain Reactor > --- PROPULSION ------- Flying Fortress v7 > --- UTILITY ---------- Experimental Coolant Injector Huge Storage Unit Spectral Analyzer Tactical Coordination Suite Tactical Coordination Suite Improved Target Analyzer Improved Target Analyzer Weapon Cycler Advanced Remote Shield > --- WEAPON ----------- Enhanced Autogun Enhanced Autogun Vortex Catalyst Activator > --- INVENTORY -------- Wheel Improved Particle Charger Weapon Cycler Improved Transmission Jammer Authchip [R/Combat] Authchip [R/Combat] Authchip [R/Combat] Authchip [R/Combat] Minesniffer Drone Bay Vortex Rail Vortex Rail Vortex Cannon Vortex Cannon Enhanced Autogun Enhanced Autogun Enhanced Autogun Enhanced Autogun Enhanced Autogun Enhanced Autogun Vortex Lance [Rating: 140] Favorites ----------- Power Cooled Ion Engine Engine Cooled Ion Engine Power Core Light Nuclear Core Reactor Vortex Chain Reactor Propulsion Compact Wheel Treads Light Treads Leg Aluminum Leg Wheel Compact Wheel Flight Unit Makeshift Flight Unit Utility Huge Storage Unit Device Tactical Coordination Suite Storage Huge Storage Unit Processor Improved Target Analyzer Hackware System Shield Protection Improved Utility Shielding Weapon Enhanced Autogun Energy Gun Particle Gun Energy Cannon Vortex Cannon Ballistic Gun Enhanced Autogun Ballistic Cannon AWS/Autocannon Launcher Improved Grenade Launcher Piercing Weapon Vortex Lance Special Melee Weapon Dirty Datajack Build | -11 -10 -10 -10 -9 -8 -8 -7 -7 -7 -7 -6 -6 -6 -6 -6 -5 -5 -5 -5 -5 -4 -4 -4 -3 ------- Run | Yrd Mat Min Exi Min Mat Sto Fac Low Low Dat Pro Fac Low Low Zio Pro Fac Upp Upp War Pro Fac Ext Res Slots Evolved 14 | . . . . . 4 . 2 . . . . 2 . . . . 2 . . . . 2 . 2 Power 1 | . . . . . . . . . . . . . . . . . . . . . . 1 . . Propulsion 2 | . . . . . 2 . . . . . . . . . . . . . . . . . . . Utility 7 | . . . . . . . 2 . . . . 2 . . . . 2 . . . . 1 . . Weapon 4 | . . . . . 2 . . . . . . . . . . . . . . . . . . 2 Parts Attached 107 | . 10 5 1 6 11 19 6 4 5 . . 7 1 . 2 1 2 . 1 8 . 7 7 4 Power 5 | . 2 . . . 1 1 . . . . . . . . . . . . . . . 1 . . Engine 3 | . 2 . . . . 1 . . . . . . . . . . . . . . . . . . Core 1 | . . . . . 1 . . . . . . . . . . . . . . . . . . . Reactor 1 | . . . . . . . . . . . . . . . . . . . . . . 1 . . Propulsion 29 | . 3 2 . 5 3 5 1 . 1 . . 2 . . . . . . . . . 3 4 . Treads 2 | . . . . . 1 . . . . . . 1 . . . . . . . . . . . . Leg 8 | . 3 2 . 3 . . . . . . . . . . . . . . . . . . . . Wheel 15 | . . . . 2 2 3 1 . . . . 1 . . . . . . . . . 2 4 . Hover . | . . . . . . . . . . . . . . . . . . . . . . . . . Flight 4 | . . . . . . 2 . . 1 . . . . . . . . . . . . 1 . . Utility 38 | . 3 1 1 . 2 1 4 1 3 . . 4 1 . 2 . 1 . 1 5 . 1 3 4 Device 21 | . 1 1 . . 2 . 2 1 2 . . 2 . . 2 . . . . 4 . . 2 2 Storage 1 | . . . 1 . . . . . . . . . . . . . . . . . . . . . Processor 7 | . . . . . . . . . 1 . . 2 . . . . 1 . 1 1 . 1 . . Hackware 5 | . . . . . . 1 2 . . . . . . . . . . . . . . . . 2 Protection 4 | . 2 . . . . . . . . . . . 1 . . . . . . . . . 1 . Artifact . | . . . . . . . . . . . . . . . . . . . . . . . . . Weapon 35 | . 2 2 . 1 5 12 1 3 1 . . 1 . . . 1 1 . . 3 . 2 . . Energy Gun 9 | . 2 1 . 1 3 1 . . . . . . . . . . . . . 1 . . . . Energy Cannon 1 | . . . . . . . . . . . . . . . . . . . . 1 . . . . Ballistic Gun 19 | . . 1 . . 2 10 . 3 1 . . 1 . . . . 1 . . . . . . . Ballistic Cannon 1 | . . . . . . . 1 . . . . . . . . . . . . . . . . . Launcher 3 | . . . . . . 1 . . . . . . . . . 1 . . . . . 1 . . Special Weapon . | . . . . . . . . . . . . . . . . . . . . . . . . . Impact Weapon . | . . . . . . . . . . . . . . . . . . . . . . . . . Slashing Weapon . | . . . . . . . . . . . . . . . . . . . . . . . . . Piercing Weapon 1 | . . . . . . . . . . . . . . . . . . . . . . 1 . . Special Melee Weapon 1 | . . . . . . . . . . . . . . . . . . . . 1 . . . . Unidentified Prototypes 15 | . . . . . . 6 . . . . . . . . . . . . . 6 . 2 1 . Corrupted Parts 4 | . . 1 . . 3 . . . . . . . . . . . . . . . . . . . System Corruption 9 | . . 4 . . 5 . . . . . . . . . . . . . . . . . . . Parts Lost 14 | . . 2 . . 2 2 1 . . . . 1 . . . . . . 1 . 1 3 . 1 Power 1 | . . . . . 1 . . . . . . . . . . . . . . . . . . . Propulsion 8 | . . . . . . 2 1 . . . . 1 . . . . . . . . 1 3 . . Utility 1 | . . . . . . . . . . . . . . . . . . . 1 . . . . . Weapon 4 | . . 2 . . 1 . . . . . . . . . . . . . . . . . . 1 Highest Loss Streak 3 | . . 2 . . 2 2 1 . . . . 1 . . . . . . 1 . 1 3 . 1 To Critical Strikes . | . . . . . . . . . . . . . . . . . . . . . . . . . Average Backups 12 | . 4 3 6 8 11 12 10 10 10 7 7 7 9 10 15 16 14 15 14 17 20 19 20 19 Power . | . . . 1 1 1 . . . . . . . 1 1 1 1 1 1 1 1 1 . . . Propulsion 1 | . 1 . . 2 1 2 1 1 . 1 1 1 1 1 1 1 1 1 . . 1 . 1 1 Utility 5 | . 1 2 1 2 8 6 4 4 4 2 2 2 3 3 8 9 7 7 6 7 8 7 9 11 Weapon 5 | . 1 1 2 2 1 2 5 5 5 4 4 4 4 5 5 5 5 6 5 6 10 10 10 7 Tool/Special . | . . . . . . . . . . . . . . . . . . . . . . . . . Unused Backups 36 | . 10 . . . . 7 1 . 1 1 . . . . 2 . . . . 4 . . 1 9 Power 3 | . 1 . . . . 1 . . . . . . . . . . . . . 1 . . . . Propulsion 5 | . 4 . . . . 1 . . . . . . . . . . . . . . . . . . Utility 21 | . 2 . . . . 4 1 . 1 1 . . . . 2 . . . . 2 . . 1 7 Weapon 6 | . 3 . . . . 1 . . . . . . . . . . . . . . . . . 2 Tool/Special 1 | . . . . . . . . . . . . . . . . . . . . 1 . . . . Average Slot Usage (%) 93 | . 97 99 55 100 92 99 95 90 88 100 99 95 99 100 95 100 99 99 99 96 97 86 83 89 Engine 5 | . 13 14 . 14 2 6 7 7 7 7 7 6 6 6 6 6 5 5 5 5 5 . . . Reactor 1 | . . . . . . . . . . . . . . . . . . . . . . 4 5 4 Leg 4 | . 27 28 28 8 . . . . . . . . . . . . . . . . . . . . Wheel 18 | . . . . 19 28 35 27 23 23 23 23 20 26 26 26 26 23 23 23 23 20 12 10 14 Device 17 | . 11 14 14 14 9 . 6 22 19 15 14 17 19 20 15 20 23 22 22 22 23 25 27 14 Storage 5 | . . . 10 14 9 9 7 7 7 7 7 6 6 6 6 6 5 5 5 5 5 5 5 4 Processor 6 | . . . . . . . . . 2 7 7 12 10 6 6 6 10 11 10 11 11 11 11 9 Hackware 1 | . . . . . . 8 15 . . . . . . . . . . . . . . . . 8 Protection 3 | . 15 14 . . . . . . . . . . 2 6 6 6 5 5 5 4 4 3 1 4 Energy Gun 5 | . 27 26 . 19 17 9 . . . . . . . . . . . . . . . . . . Ballistic Gun 19 | . . 1 . 8 17 25 29 28 25 30 30 26 26 26 26 25 23 23 21 18 23 19 19 27 Peak Build Rating 140 | . 11 16 21 22 30 39 60 65 65 47 48 56 58 53 59 59 70 70 70 82 81 140 128 121 Average Rating 58 | . 9 11 15 19 27 33 43 47 49 46 47 51 55 53 53 58 69 68 66 68 79 111 115 109 On Entrance 51 | 6 6 10 15 21 20 30 38 60 56 47 43 48 55 53 53 55 59 67 67 62 82 78 140 113 Avg Prop Armor Cover (%) 4 | . . . 34 . 9 . . . 1 1 1 5 . . . . . . . . . . . . Naked Turns . | . . . . . . . . . . . . . . . . . . . . . . . . . Heaviest Build 162 | 11 19 17 91 92 94 100 157 156 157 102 102 110 112 112 112 116 116 116 116 116 113 162 161 148 Greatest Support 64 | 20 20 30 30 32 54 60 64 48 48 48 48 58 58 58 58 58 58 58 58 58 58 58 54 54 Greatest Overweight (x) 5 | . 1 . 3 5 2 3 3 3 3 2 2 2 3 1 1 1 1 1 1 1 2 4 3 2 Average Overweight (x) 1 | . . . 1 2 1 1 1 2 2 2 2 1 1 1 1 1 1 1 1 1 1 2 2 2 Largest Inventory Capacity 25 | . 8 5 25 25 25 25 25 25 25 25 25 25 25 25 25 25 25 25 25 25 25 25 25 25 Average Capacity 22 | . 5 5 20 25 25 25 25 25 25 25 25 25 25 25 25 25 25 25 25 25 25 25 25 25 Most Carried 25 | . 8 5 13 16 19 22 18 18 19 12 11 12 13 14 22 21 19 20 20 25 25 25 25 24 Average Carried 16 | . 4 3 10 13 16 17 15 15 14 11 10 10 12 13 18 19 17 18 17 21 25 22 23 22 Final Capacity 25 | 8 5 5 25 25 25 25 25 25 25 25 25 25 25 25 25 25 25 25 25 25 25 25 25 25 Final Carried 25 | 6 4 2 10 16 19 16 15 16 12 10 11 12 13 14 19 19 18 18 16 25 25 20 25 23 Class Distribution -------------------- 23% | Scavenger-Skirmisher 17% | Scavenger-Gunner 13% | Mutant 13% | Scavenger-Tank 10% | Gunner 8% | Scavenger-Mutant 4% | Commander-Gunner 4% | Hacker-Executioner Dominant Class ---------------- Mutant | -10/Materials Mutant | -10/Mines Mutant | -10/Exiles Scavenger-Mutant | -9/Mines Scavenger-Skirmisher | -8/Materials Scavenger-Gunner | -8/Storage Hacker-Tank | -7/Factory Scavenger-Tank | -7/Lower Caves Scavenger-Tank | -7/Lower Caves Scavenger-Skirmisher | -7/Data Miner Scavenger-Skirmisher | -6/Proximity Caves Scavenger-Gunner | -6/Factory Scavenger-Skirmisher | -6/Lower Caves Scavenger-Tank | -6/Lower Caves Scavenger-Tank | -6/Zion Scavenger-Skirmisher | -5/Proximity Caves Scavenger-Skirmisher | -5/Factory Scavenger-Gunner | -5/Upper Caves Scavenger-Skirmisher | -5/Upper Caves Scavenger-Gunner | -5/Warlord Gunner | -4/Proximity Caves Scavenger-Gunner | -4/Factory Gunner | -4/Extension Hacker-Executioner | -3/Research Resources | -11 -10 -10 -10 -9 -8 -8 -7 -7 -7 -7 -6 -6 -6 -6 -6 -5 -5 -5 -5 -5 -4 -4 -4 -3 ----------- Run | Yrd Mat Min Exi Min Mat Sto Fac Low Low Dat Pro Fac Low Low Zio Pro Fac Upp Upp War Pro Fac Ext Res Matter Collected 7079 | 200 136 176 . 247 158 376 721 33 309 . 185 509 146 80 60 320 110 284 185 211 354 597 1359 323 Remotely . | . . . . . . . . . . . . . . . . . . . . . . . . . Salvage Created 5964 | . 150 11 . 193 390 413 637 . 119 . 56 412 124 92 . 284 147 316 12 57 362 1148 852 189 Parts 248 | . 12 . . 12 19 20 37 . 5 . 3 14 . 7 . 10 4 2 5 1 9 46 31 11 Haulers Intercepted 6 | . 1 . . . 1 3 1 . . . . . . . . . . . . . . . . . Recyclers Shooed 6 | . 1 . . 1 . . 1 . . . . . . . . . . . . . . 1 1 1 Parts Field Recycled . | . . . . . . . . . . . . . . . . . . . . . . . . . Retrieved Matter . | . . . . . . . . . . . . . . . . . . . . . . . . . Parts Self-Destructed 54 | . . . . . . . . . 5 . 3 . 2 10 . 18 . 6 . . 10 . . . Prevented 6 | . . . . . . . . . . . . . 3 . . . . . . . 3 . . . Parts Restored . | . . . . . . . . . . . . . . . . . . . . . . . . . Kills | -11 -10 -10 -10 -9 -8 -8 -7 -7 -7 -7 -6 -6 -6 -6 -6 -5 -5 -5 -5 -5 -4 -4 -4 -3 ------- Run | Yrd Mat Min Exi Min Mat Sto Fac Low Low Dat Pro Fac Low Low Zio Pro Fac Upp Upp War Pro Fac Ext Res Combat Hostiles Destroyed 81 | . 5 2 . 2 6 3 9 . 2 . 1 6 . 3 . 7 2 2 2 1 5 12 7 4 Guns 70 | . 5 2 . 2 5 3 9 . 2 . 1 6 . 3 . 3 2 2 1 1 5 7 7 4 AOE 10 | . . . . . . . . . . . . . . . . 4 . . 1 . . 5 . . Classes Destroyed 17 | . 3 1 . 3 . . 2 . 2 . . 1 . . . . . . 1 . 1 2 1 . Worker 6 | . . . . 1 1 . 1 . . . . 1 . . . . . . . . . 1 . 1 Builder 6 | . . . . 1 . 1 1 . . . . . . . . . . . . . . 3 . . Hauler 6 | . 1 . . . 1 3 1 . . . . . . . . . . . . . . . . . Recycler 9 | . . . . 1 . 1 2 . . . . . . . . . . . . . . 3 2 . Mechanic 1 | . . . . . . . . . . . . . . . . . . . . . . 1 . . Operator 3 | . . . . . . . 1 . . . . . . . . . . . . . . 1 1 . Watcher 4 | . . . . . . . 1 . . . . . . . . . . . . . . 2 1 . Swarmer 20 | . 3 . . 1 . . 6 . . . . . . 2 . 2 . 1 . . . . 2 3 Grunt 32 | . 2 . . 1 6 3 3 . . . . 3 . . . 5 1 1 . 1 2 3 . 1 Brawler 2 | . . . . . . . . . . . . 1 . . . . 1 . . . . . . . Duelist 1 | . . . . . . . . . . . . . . . . . . . . . . 1 . . Sentry 11 | . . . . . . . . . 1 . 1 2 . . . . . . . . . 4 3 . Hunter 7 | . . . . . . . . . 1 . . . . 1 . . . . . . 2 2 1 . Programmer 3 | . . . . . . . . . . . . . . . . . . . . . 1 2 . . Behemoth 1 | . . . . . . . . . . . . . . . . . . . . . . . 1 . Packrat 3 | . . . . . . . . . . . . . . . . . . 3 . . . . . . Master Thief 2 | . . . . . . . . . . . . . . . . . . . 2 . . . . . Assembled 1 | . . 1 . . . . . . . . . . . . . . . . . . . . . . Thug 1 | . . . . . . . . . . . . . . . . . . . . . . . 1 . Best Kill Streak 7 | . 4 1 . 1 2 2 5 . 1 . 1 4 . 2 . 5 2 2 2 1 2 7 3 2 Combat Bots Only 5 | . 3 1 . 1 2 1 3 . 1 . 1 4 . 2 . 5 2 2 2 1 2 3 2 2 Max Kills in Single Turn 5 | . 1 1 . 1 2 2 2 . 1 . 1 1 . 1 . 2 1 2 1 1 2 5 1 2 Gunslinging 1 | . . . . . . . 1 . . . . . . . . . . . . . . . . . Exploded 3 | . . . . . . . . . . . . . . . . 2 . . 1 . . 3 . . Melee . | . . . . . . . . . . . . . . . . . . . . . . . . . Uniques/NPCs Destroyed 1 | . . 1 . . . . . . . . . . . . . . . . . . . . . . YI-UF0 (-10/Mines) Combat | -11 -10 -10 -10 -9 -8 -8 -7 -7 -7 -7 -6 -6 -6 -6 -6 -5 -5 -5 -5 -5 -4 -4 -4 -3 -------- Run | Yrd Mat Min Exi Min Mat Sto Fac Low Low Dat Pro Fac Low Low Zio Pro Fac Upp Upp War Pro Fac Ext Res Hostile Shots Fired 280 | . 32 17 . 7 27 15 28 . 12 . . 21 3 4 . 9 10 . 6 5 14 50 10 10 Missed 77 | . 8 4 . 2 4 5 9 . 5 . . 10 . 1 . 2 3 . 2 2 3 9 4 4 Hits 203 | . 24 13 . 5 23 10 19 . 7 . . 11 3 3 . 7 7 . 4 3 11 41 6 6 Melee 22 | . . . . . . . . . 5 . . . . . . . . . 4 . . 13 . . Projectile 181 | . 24 13 . 5 23 10 19 . 2 . . 11 3 3 . 7 7 . . 3 11 28 6 6 AOE 11 | . . 11 . . . . . . . . . . . . . . . . . . . . . . Critical Strikes 13 | . . . . 1 4 . 1 . . . . . . . . . . . . . . 7 . . Actively Blocked 1 | . . . . . . . . . . . . . . . . . . . . . . 1 . . Damage Taken 3576 | . 246 387 . 87 376 226 276 . 10 . . 162 . 29 . 170 136 . 71 36 207 910 98 149 Core 733 | . 51 51 . 51 100 48 50 . . . . 23 . . . 60 22 . . 14 39 139 15 70 Absorbed by Shields 544 | . . . . . . . 106 . 6 . . . . 11 . . 49 . 28 13 19 283 29 . Redirected to Shielding 85 | . . . . . . . . . . . . . . . . 26 5 . 13 . . 41 . . Regen/Repaired (Parts) 411 | . . . . . . . . . . . . . . . 396 . . . . 15 . . . . Core Remaining (%) 68 | 100 . . . 21 . 51 . . . . 86 . . . . 72 . . . . 90 . 58 . Volleys Fired 358 | . 21 9 . 17 25 29 37 . 10 . 1 25 6 5 . 11 8 6 12 5 10 41 69 11 Largest 6 | . 2 2 . 2 4 4 4 . 4 . 4 4 4 4 . 4 4 4 4 4 4 4 4 6 Hottest 170 | . 130 130 . 110 170 168 100 . 100 . 100 103 100 100 . 100 108 108 111 100 100 100 100 150 Shots Fired 1287 | . 41 18 . 36 94 103 147 . 44 . 4 100 24 20 . 38 32 24 33 20 40 126 277 66 Gun 1269 | . 41 18 . 36 94 99 147 . 40 . 4 100 24 20 . 36 32 24 30 20 40 121 277 66 Cannon 4 | . . . . . . . . . 4 . . . . . . . . . . . . . . . Launcher 14 | . . . . . . 4 . . . . . . . . . 2 . . 3 . . 5 . . Special . | . . . . . . . . . . . . . . . . . . . . . . . . . Kinetic 1129 | . . 1 . 16 49 78 147 . 44 . 4 100 24 20 . 36 32 24 30 20 40 121 277 66 Thermal 132 | . 41 17 . 17 36 21 . . . . . . . . . . . . . . . . . . Explosive 9 | . . . . . . 4 . . . . . . . . . 2 . . 3 . . . . . Electromagnetic 12 | . . . . 3 9 . . . . . . . . . . . . . . . . . . . Entropic 5 | . . . . . . . . . . . . . . . . . . . . . . 5 . . Robot Hit Streak 30 | . 8 4 . 9 8 10 6 . 10 . 1 11 8 7 . 9 6 6 6 4 13 21 30 17 Robot Miss Streak 6 | . 5 4 . 4 5 4 6 . 6 . . 5 1 4 . 3 2 2 4 4 2 2 3 3 Penetration Max 1 | . . . . . . . . . . . . . . . . . 1 . . . . . . . Secondary Targets 13 | . 2 . . 1 . 1 1 . . . . 3 . . . . 1 . . . . 1 1 2 Max Gunslinging Chain 1 | . 1 . . 1 . 1 1 . . . . 1 . . . . 1 . . . . 1 1 1 Autonomous 4 | . . . . . . . . . 4 . . . . . . . . . . . . . . . Shots Hit Robots 812 | . 20 10 . 23 56 58 59 . 19 . 1 69 19 9 . 20 21 13 14 10 30 90 223 48 Core Hits 282 | . 8 2 . 7 22 19 24 . 5 . 1 22 4 6 . 13 9 8 5 5 15 51 43 13 Critical Kills 9 | . . . . . . . . . . . . 1 . . . . . 1 . . 1 . 5 1 Critical Parts Destroyed 13 | . . . . . . . . . . . . 3 1 . . . . . . . 2 1 4 2 Critical Strikes 27 | . 1 . . 1 1 . . . . . . 4 1 . . . . 1 . . 3 1 10 4 Burn 2 | . 1 . . 1 . . . . . . . . . . . . . . . . . . . . Destroy 24 | . . . . . . . . . . . . 4 1 . . . . 1 . . 3 1 10 4 Corrupt 1 | . . . . . 1 . . . . . . . . . . . . . . . . . . . Melee Attacks 4 | . . . . . . . . . . . . . . . . . . . . . . 4 . . Impact . | . . . . . . . . . . . . . . . . . . . . . . . . . Slashing . | . . . . . . . . . . . . . . . . . . . . . . . . . Piercing . | . . . . . . . . . . . . . . . . . . . . . . . . . Entropic 4 | . . . . . . . . . . . . . . . . . . . . . . 4 . . Sneak Attacks . | . . . . . . . . . . . . . . . . . . . . . . . . . Combat Hostiles . | . . . . . . . . . . . . . . . . . . . . . . . . . Follow-up Attacks . | . . . . . . . . . . . . . . . . . . . . . . . . . Damage Inflicted 17479 | . 320 159 . 318 723 902 1304 . 490 . 14 1197 322 176 . 767 481 264 548 223 559 3808 3987 917 Guns 14370 | . 318 159 . 318 723 873 1304 . 331 . 14 1197 322 176 . 375 481 264 233 223 559 1596 3987 917 Cannons 159 | . . . . . . . . . 159 . . . . . . . . . . . . . . . Explosions 2903 | . . . . . . 29 . . . . . . . . . 392 . . 315 . . 2167 . . Melee . | . . . . . . . . . . . . . . . . . . . . . . . . . Ramming 47 | . 2 . . . . . . . . . . . . . . . . . . . . 45 . . Kinetic 13218 | . . . . 118 268 694 1304 . 490 . 14 1197 322 176 . 375 481 264 233 223 559 1596 3987 917 Thermal 1168 | . 318 159 . 155 357 179 . . . . . . . . . . . . . . . . . . Explosive 736 | . . . . . . 29 . . . . . . . . . 392 . . 315 . . . . . Electromagnetic 143 | . . . . 45 98 . . . . . . . . . . . . . . . . . . . Impact . | . . . . . . . . . . . . . . . . . . . . . . . . . Slashing . | . . . . . . . . . . . . . . . . . . . . . . . . . Piercing . | . . . . . . . . . . . . . . . . . . . . . . . . . Entropic 2167 | . . . . . . . . . . . . . . . . . . . . . . 2167 . . Highest Corruption 8 | . 4 8 8 8 5 5 . . . . . . . . . . . . . . 1 2 2 . Average Corruption 4 | . 3 5 8 8 4 5 . . . . . . . . . . . . . . 1 1 2 . Corruption Purged . | . . . . . . . . . . . . . . . . . . . . . . . . . Corruption Blocked . | . . . . . . . . . . . . . . . . . . . . . . . . . Effects 137 | . 12 28 13 30 10 12 . . . . . . . . . . . . . . 5 6 21 . Message Errors 30 | . 2 5 2 9 3 3 . . . . . . . . . . . . . . 1 2 3 . Matter Fused 35 | . 7 7 4 7 1 3 . . . . . . . . . . . . . . 2 . 4 . Heat Flow Errors 19 | . 1 5 1 5 1 2 . . . . . . . . . . . . . . 1 . 3 . Energy Discharges 13 | . . 3 1 1 1 1 . . . . . . . . . . . . . . . 1 5 . Parts Rejected 1 | . 1 . . . . . . . . . . . . . . . . . . . . . . . Parts Fused 2 | . 1 . . 1 . . . . . . . . . . . . . . . . . . . . Data Loss (minor) 19 | . . 5 4 3 . 1 . . . . . . . . . . . . . . 1 2 3 . Data Loss (major) 5 | . . 1 1 . 1 2 . . . . . . . . . . . . . . . . . . Misfires 4 | . . . . 2 . . . . . . . . . . . . . . . . . . 2 . Alerts 6 | . . 2 . 2 2 . . . . . . . . . . . . . . . . . . . Weapon Failures 3 | . . . . . 1 . . . . . . . . . . . . . . . . 1 1 . Overload Shots . | . . . . . . . . . . . . . . . . . . . . . . . . . Overflow Damage 94 | . . . . . . . . . 39 . . . . . . . . . 1 . . 54 . . Projectiles 39 | . . . . . . . . . 39 . . . . . . . . . . . . . . . Explosions 55 | . . . . . . . . . . . . . . . . . . . 1 . . 54 . . Melee . | . . . . . . . . . . . . . . . . . . . . . . . . . Knockbacks 4 | . . . . . . . . . 3 . . . . . . . . . . . . 1 . . Impact 1 | . . . . . . . . . . . . . . . . . . . . . . 1 . . Kinetic 2 | . . . . . . . . . 2 . . . . . . . . . . . . . . . Secondary 1 | . . . . . . . . . 1 . . . . . . . . . . . . . . . Self-Inflicted Damage 138 | . . . . . . 46 . . . . . . . . . . . . 70 . . 22 . . Shots 4 | . . . . . . 2 . . . . . . . . . . . . 2 . . . . . Rammed 1 | . . . . . . . . . . . . . . . . . . . . . . 1 . . Targets Rammed 4 | . 2 1 . . . . . . . . . . . . . . . . . . . 1 . . Kicked 3 | . 2 1 . . . . . . . . . . . . . . . . . . . . . . Crushed . | . . . . . . . . . . . . . . . . . . . . . . . . . Highest Temperature 353 | . 306 216 254 247 259 353 290 . 185 . 55 176 47 47 . 94 56 52 55 189 132 176 217 284 Average Temperature 90 | . 116 90 121 63 71 117 103 . 76 . 32 77 47 47 . 51 42 52 28 104 61 64 89 129 Received Heat Transfer 768 | . 54 . . 54 279 84 44 . . . . 33 . . . 54 27 . 9 12 21 67 21 9 Effects 2 | . . . 1 . . . 1 . . . . . . . . . . . . . . . . . Energy Bleed 1 | . . . . . . . 1 . . . . . . . . . . . . . . . . . Interference 1 | . . . 1 . . . . . . . . . . . . . . . . . . . . . Siege Activations . | . . . . . . . . . . . . . . . . . . . . . . . . . Martial Activations . | . . . . . . . . . . . . . . . . . . . . . . . . . Shielding Activations . | . . . . . . . . . . . . . . . . . . . . . . . . . Robots Disrupted . | . . . . . . . . . . . . . . . . . . . . . . . . . Combat Hostiles . | . . . . . . . . . . . . . . . . . . . . . . . . . Robots Corrupted 1 | . . . . . 1 . . . . . . . . . . . . . . . . . . . Combat Hostiles 1 | . . . . . 1 . . . . . . . . . . . . . . . . . . . Parts Fried 1 | . . . . . . . 1 . . . . . . . . . . . . . . . . . Impact Corruptions 1 | . . . . . . . . . 1 . . . . . . . . . . . . . . . Robots Melted 1 | . . . . 1 . . . . . . . . . . . . . . . . . . . . Combat Hostiles . | . . . . . . . . . . . . . . . . . . . . . . . . . Parts Melted 5 | . . . . 2 1 . . . . . . . . . . . . . . . . 2 . . Heat Transferred 2886 | . 851 370 . 444 851 370 . . . . . . . . . . . . . . . . . . Parts Sabotaged . | . . . . . . . . . . . . . . . . . . . . . . . . . Parts Stolen 7 | . . . . . . . . . 4 . . . . . . . . . 3 . . . . . Parts Stripped . | . . . . . . . . . . . . . . . . . . . . . . . . . Power Chain Reactions . | . . . . . . . . . . . . . . . . . . . . . . . . . Alert | -11 -10 -10 -10 -9 -8 -8 -7 -7 -7 -7 -6 -6 -6 -6 -6 -5 -5 -5 -5 -5 -4 -4 -4 -3 ------- Run | Yrd Mat Min Exi Min Mat Sto Fac Low Low Dat Pro Fac Low Low Zio Pro Fac Upp Upp War Pro Fac Ext Res Maximum Alert Level 3 | . 1 . . . 1 2 2 . . . . . . . . . . . . . . 3 2 1 Low Security (%) 64 | . 98 100 . 100 74 9 29 . . . . 100 . . . . 100 . . . . 64 17 77 Level 1 28 | . 1 . . . 25 81 30 . . . . . . . . . . . . . . 2 78 22 Level 2 5 | . . . . . . 9 40 . . . . . . . . . . . . . . 14 4 . Level 3 1 | . . . . . . . . . . . . . . . . . . . . . . 18 . . Level 4 . | . . . . . . . . . . . . . . . . . . . . . . . . . Level 5 . | . . . . . . . . . . . . . . . . . . . . . . . . . High Security . | . . . . . . . . . . . . . . . . . . . . . . . . . Max Security . | . . . . . . . . . . . . . . . . . . . . . . . . . Peak Influence 917 | . 203 47 . 87 298 434 556 . . . . 116 . . . . 99 . . . . 917 430 274 Initial 430 | . . 47 . . . 114 189 . . . . . . . . . 58 . . . . 18 430 42 Average 156 | . 92 2 . 15 162 291 321 . . . . 49 . . . . 56 . . . . 256 280 89 Influence Increases 6327 | . 397 . . 187 525 554 677 . 68 . 25 289 49 149 . 286 179 75 . 90 211 1267 676 623 Destroy 0b10 Robot/C 3240 | . 200 . . 100 320 240 360 . 40 . 20 160 20 100 . 200 120 60 . 60 140 360 380 360 Destroy 0b10 Robot/NC 275 | . 25 . . 25 10 25 55 . 5 . . 10 10 . . . . . . . . 65 20 25 Destroy Leader 580 | . 48 . . 20 62 46 54 . 10 . . 40 10 20 . 30 10 . . . 30 96 52 52 Allied During Kill 1120 | . 63 . . 34 94 73 111 . 13 . 5 50 9 29 . 56 32 15 . 15 41 121 204 155 Successful Hack 126 | . . . . 8 5 12 45 . . . . 21 . . . . 13 . . . . 8 14 . Select Force Hacks 90 | . 60 . . . . 30 . . . . . . . . . . . . . . . . . . Disable Machine 255 | . . . . . 15 90 15 . . . . . . . . . . . . . . 120 . 15 Anti-Garrison Action 200 | . . . . . . . . . . . . . . . . . . . . . . 200 . . Destroy Structure 381 | . 1 . . . 19 38 7 . . . . 8 . . . . 4 . . . . 282 6 16 Lose Combat Pursuer 60 | . . . . . . . 30 . . . . . . . . . . . . 15 . 15 . . Influence Decreases 6079 | . 274 123 . 187 254 407 555 360 248 . 25 237 101 140 9 192 214 134 . 16 254 419 1473 457 Entered New Map 1361 | . . 76 . . . 157 229 200 35 . . . 20 . 9 . 36 23 . . 74 13 449 40 Time Decay 3819 | . 274 47 . 187 234 230 286 160 213 . 25 212 81 140 . 162 168 111 . 16 150 286 604 233 Lost Part 529 | . . . . . 20 20 40 . . . . 25 . . . 30 10 . . . 30 120 110 124 Lost Ally 220 | . . . . . . . . . . . . . . . . . . . . . . . 160 60 Purge Threat 150 | . . . . . . . . . . . . . . . . . . . . . . . 150 . Squads Dispatched 23 | . 4 . . . 4 1 4 . . . . 1 . . . . 2 . . . . 4 1 2 Investigation 12 | . 4 . . . 3 1 1 . . . . 1 . . . . 1 . . . . 1 . . Extermination 5 | . . . . . . . . . . . . . . . . . 1 . . . . 2 . 2 Reinforcement 5 | . . . . . 1 . 2 . . . . . . . . . . . . . . 1 1 . Assault . | . . . . . . . . . . . . . . . . . . . . . . . . . Garrison 1 | . . . . . . . 1 . . . . . . . . . . . . . . . . . Intercept . | . . . . . . . . . . . . . . . . . . . . . . . . . Searches Triggered . | . . . . . . . . . . . . . . . . . . . . . . . . . Data Miner Redirects 1 | . . . . . . . . . . . . . . . . . . . . . . 1 . . Construction Impeded 3 | . . . . . 1 . 1 . . . . . . . . . . . . . . 1 . . Haulers Reinforced 1 | . . . . . . . 1 . . . . . . . . . . . . . . . . . Active Scanning Responses . | . . . . . . . . . . . . . . . . . . . . . . . . . Cargo Convoy Interrupts . | . . . . . . . . . . . . . . . . . . . . . . . . . Stealth | -11 -10 -10 -10 -9 -8 -8 -7 -7 -7 -7 -6 -6 -6 -6 -6 -5 -5 -5 -5 -5 -4 -4 -4 -3 --------- Run | Yrd Mat Min Exi Min Mat Sto Fac Low Low Dat Pro Fac Low Low Zio Pro Fac Upp Upp War Pro Fac Ext Res Distress Signals 9 | . 1 1 . . . . 2 . . . . . . . . . . . . . . 3 2 . Communications Jammed 29 | . . . . . . . . . . . . . . . . . . . . . . . . 29 Distress Signals 29 | . . . . . . . . . . . . . . . . . . . . . . . . 29 Times Spotted 177 | . 15 2 . 5 16 13 25 . 6 . 1 8 1 5 . 8 7 3 4 4 7 23 12 12 Peak Tracking Total 8 | . 6 1 . 3 3 3 7 . 4 . 1 4 1 4 . 5 3 3 4 3 4 8 3 3 Tactical Retreats 3 | . . . . . . . 1 . . . . . . . . . . . . 1 . 1 . . Traps | -11 -10 -10 -10 -9 -8 -8 -7 -7 -7 -7 -6 -6 -6 -6 -6 -5 -5 -5 -5 -5 -4 -4 -4 -3 ------- Run | Yrd Mat Min Exi Min Mat Sto Fac Low Low Dat Pro Fac Low Low Zio Pro Fac Upp Upp War Pro Fac Ext Res Traps Triggered 10 | . 5 . . . . . . . . . . 2 . . . . 2 . . . . 1 . . Indirectly . | . . . . . . . . . . . . . . . . . . . . . . . . . Trap Hack Attempts . | . . . . . . . . . . . . . . . . . . . . . . . . . Triggered . | . . . . . . . . . . . . . . . . . . . . . . . . . Disarmed . | . . . . . . . . . . . . . . . . . . . . . . . . . Reprogrammed . | . . . . . . . . . . . . . . . . . . . . . . . . . Reused . | . . . . . . . . . . . . . . . . . . . . . . . . . Traps Extracted . | . . . . . . . . . . . . . . . . . . . . . . . . . Installed 4 | . . . . 4 . . . . . . . . . . . . . . . . . . . . Triggered . | . . . . . . . . . . . . . . . . . . . . . . . . . Machines | -11 -10 -10 -10 -9 -8 -8 -7 -7 -7 -7 -6 -6 -6 -6 -6 -5 -5 -5 -5 -5 -4 -4 -4 -3 ---------- Run | Yrd Mat Min Exi Min Mat Sto Fac Low Low Dat Pro Fac Low Low Zio Pro Fac Upp Upp War Pro Fac Ext Res Machines Disabled 17 | . . . . . 1 6 1 . . . . . . . . . . . . . . 8 . 1 Max in Single Turn 3 | . . . . . . 1 . . . . . . . . . . . . . . . 3 . . Garrison Access 3 | . . . . . 1 . . . . . . . . . . . . . . . . 1 . 1 Energy Cycler 1 | . . . . . . . . . . . . . . . . . . . . . . . 1 . Machines Repaired . | . . . . . . . . . . . . . . . . . . . . . . . . . Machines Dismantled . | . . . . . . . . . . . . . . . . . . . . . . . . . Machines Sabotaged . | . . . . . . . . . . . . . . . . . . . . . . . . . Overloaded Fab Kills . | . . . . . . . . . . . . . . . . . . . . . . . . . Hacking | -11 -10 -10 -10 -9 -8 -8 -7 -7 -7 -7 -6 -6 -6 -6 -6 -5 -5 -5 -5 -5 -4 -4 -4 -3 --------- Run | Yrd Mat Min Exi Min Mat Sto Fac Low Low Dat Pro Fac Low Low Zio Pro Fac Upp Upp War Pro Fac Ext Res Machines Accessed 37 | . 4 . 2 1 4 4 5 . . 3 . 4 . . . . 1 . . 2 . 3 3 1 Terminals 20 | . 2 . . 1 3 3 3 . . . . 2 . . . . 1 . . . . 2 3 . Fabricators 2 | . . . . . . . 1 . . . . 1 . . . . . . . . . . . . Repair Stations . | . . . . . . . . . . . . . . . . . . . . . . . . . Recycling Units 3 | . 2 . . . . 1 . . . . . . . . . . . . . . . . . . Scanalyzers 2 | . . . . . . . 1 . . . . 1 . . . . . . . . . . . . Garrison Access 3 | . . . . . 1 . . . . . . . . . . . . . . . . 1 . 1 Total Hacks 82 | . 6 . 2 1 11 9 13 . . 15 . 8 . . . . 3 . . 2 . 6 5 1 Successful 50 | . 2 . 2 1 4 4 7 . . 15 . 5 . . . . 2 . . 2 . 2 3 1 Failed 32 | . 4 . . . 7 5 6 . . . . 3 . . . . 1 . . . . 4 2 . Catastrophic 10 | . 2 . . . 1 1 2 . . . . 1 . . . . . . . . . 1 2 . Database Lockouts . | . . . . . . . . . . . . . . . . . . . . . . . . . Manual 34 | . 4 . 1 1 6 2 4 . . . . 5 . . . . 2 . . 1 . 5 3 . Terminals 41 | . 4 . . 1 10 7 5 . . . . 3 . . . . 3 . . . . 3 5 . Fabricators 5 | . . . . . . . 3 . . . . 2 . . . . . . . . . . . . Repair Stations . | . . . . . . . . . . . . . . . . . . . . . . . . . Recycling Units 4 | . 2 . . . . 2 . . . . . . . . . . . . . . . . . . Scanalyzers 8 | . . . . . . . 5 . . . . 3 . . . . . . . . . . . . Garrison Access 5 | . . . . . 1 . . . . . . . . . . . . . . . . 3 . 1 Terminal Hacks 33 | . . . 2 1 3 3 1 . . 15 . . . . . . 2 . . 2 . 1 3 . Record 7 | . . . 1 . . . . . . 6 . . . . . . . . . . . . . . Part Schematic 5 | . . . . 1 1 . . . . 3 . . . . . . . . . . . . . . Robot Schematic 3 | . . . . . . . . . . 3 . . . . . . . . . . . . . . Prototype ID Bank 3 | . . . . . . . . . . 3 . . . . . . . . . . . . . . Open Door 4 | . . . . . . 2 . . . . . . . . . . . . . 2 . . . . Level Access Points 1 | . . . . . . . 1 . . . . . . . . . . . . . . . . . Branch Access Points 2 | . . . . . . . . . . . . . . . . . 1 . . . . 1 . . Alert Level 2 | . . . . . 1 . . . . . . . . . . . . . . . . . 1 . Unreport Threat 1 | . . . . . . . . . . . . . . . . . . . . . . . 1 . Locate Traps 1 | . . . . . . . . . . . . . . . . . . . . . . . 1 . Hauler Manifests 2 | . . . . . 1 1 . . . . . . . . . . . . . . . . . . Zone Layout 1 | . . . . . . . . . . . . . . . . . 1 . . . . . . . Proto ID Catalog 1 | . . . 1 . . . . . . . . . . . . . . . . . . . . . Fabricator Hacks 3 | . . . . . . . 3 . . . . . . . . . . . . . . . . . Load Schematic 1 | . . . . . . . 1 . . . . . . . . . . . . . . . . . Build 2 | . . . . . . . 2 . . . . . . . . . . . . . . . . . Repair Station Hacks . | . . . . . . . . . . . . . . . . . . . . . . . . . Recycling Unit Hacks . | . . . . . . . . . . . . . . . . . . . . . . . . . Scanalyzer 5 | . . . . . . . 2 . . . . 3 . . . . . . . . . . . . Insert Component 2 | . . . . . . . 1 . . . . 1 . . . . . . . . . . . . Analyze 2 | . . . . . . . . . . . . 2 . . . . . . . . . . . . Retrieve Study 1 | . . . . . . . 1 . . . . . . . . . . . . . . . . . Garrison Access Hacks 2 | . . . . . 1 . . . . . . . . . . . . . . . . . . 1 Seal Access 2 | . . . . . 1 . . . . . . . . . . . . . . . . . . 1 Unauthorized Hacks 7 | . 2 . . . . 1 1 . . . . 2 . . . . . . . . . 1 . . Terminals 2 | . . . . . . . 1 . . . . 1 . . . . . . . . . . . . Botnet 2 | . . . . . . . 1 . . . . 1 . . . . . . . . . . . . Fabricators 1 | . . . . . . . . . . . . 1 . . . . . . . . . . . . Haulers 1 | . . . . . . . . . . . . 1 . . . . . . . . . . . . Repair Stations . | . . . . . . . . . . . . . . . . . . . . . . . . . Recycling Units 3 | . 2 . . . . 1 . . . . . . . . . . . . . . . . . . Tunnel 3 | . 2 . . . . 1 . . . . . . . . . . . . . . . . . . Scanalyzers . | . . . . . . . . . . . . . . . . . . . . . . . . . Garrison Access 1 | . . . . . . . . . . . . . . . . . . . . . . 1 . . Jam 1 | . . . . . . . . . . . . . . . . . . . . . . 1 . . Data Cores Recovered 1 | . . . . . . . 1 . . . . . . . . . . . . . . . . . Used . | . . . . . . . . . . . . . . . . . . . . . . . . . Hacking Detections 19 | . 2 . . . 2 1 5 . . . . 4 . . . . 1 . . . . 2 2 . Full Trace Events 5 | . 1 . . . 2 . 1 . . . . 1 . . . . . . . . . . . . Feedback Events . | . . . . . . . . . . . . . . . . . . . . . . . . . Feedback Blocked . | . . . . . . . . . . . . . . . . . . . . . . . . . Robot Schematics Acquired 6 | . . . . . . . . . . 3 . . . . 3 . . . . . . . . . Robots Built . | . . . . . . . . . . . . . . . . . . . . . . . . . Authchips . | . . . . . . . . . . . . . . . . . . . . . . . . . Time . | . . . . . . . . . . . . . . . . . . . . . . . . . Total Robot Build Rating . | . . . . . . . . . . . . . . . . . . . . . . . . . Part Schematics Acquired 14 | . . . . 1 1 . . . . 3 . 1 . . 8 . . . . . . . . . Parts Built 2 | . . . . . . . 2 . . . . . . . . . . . . . . . . . Authchips . | . . . . . . . . . . . . . . . . . . . . . . . . . Time 157 | . . . . . . . 157 . . . . . . . . . . . . . . . . . Total Part Build Rating 8 | . . . . . . . 8 . . . . . . . . . . . . . . . . . Part Studies Acquired 1 | . . . . . . . 1 . . . . . . . . . . . . . . . . . Parts Repaired . | . . . . . . . . . . . . . . . . . . . . . . . . . Time . | . . . . . . . . . . . . . . . . . . . . . . . . . Parts Recycled . | . . . . . . . . . . . . . . . . . . . . . . . . . Recycled Matter . | . . . . . . . . . . . . . . . . . . . . . . . . . Retrieved Matter . | . . . . . . . . . . . . . . . . . . . . . . . . . Retrieved Components . | . . . . . . . . . . . . . . . . . . . . . . . . . Parts Scanalyzed 1 | . . . . . . . . . . . . 1 . . . . . . . . . . . . Part Schematics Acquired 1 | . . . . . . . . . . . . 1 . . . . . . . . . . . . Parts Damaged . | . . . . . . . . . . . . . . . . . . . . . . . . . Bothacking | -11 -10 -10 -10 -9 -8 -8 -7 -7 -7 -7 -6 -6 -6 -6 -6 -5 -5 -5 -5 -5 -4 -4 -4 -3 ------------ Run | Yrd Mat Min Exi Min Mat Sto Fac Low Low Dat Pro Fac Low Low Zio Pro Fac Upp Upp War Pro Fac Ext Res Used RIF Installer . | . . . . . . . . . . . . . . . . . . . . . . . . . Robots Hacked . | . . . . . . . . . . . . . . . . . . . . . . . . . Non-combat . | . . . . . . . . . . . . . . . . . . . . . . . . . Combat . | . . . . . . . . . . . . . . . . . . . . . . . . . Robot Hacks Applied . | . . . . . . . . . . . . . . . . . . . . . . . . . Relay Couplers Released . | . . . . . . . . . . . . . . . . . . . . . . . . . Fabnet Peak Effective % . | . . . . . . . . . . . . . . . . . . . . . . . . . Robots Rewired 7 | . . . . . . . . . . . . . . . . . . . . . . . 7 . Allies Hacked . | . . . . . . . . . . . . . . . . . . . . . . . . . Hacks Repelled . | . . . . . . . . . . . . . . . . . . . . . . . . . Allies | -11 -10 -10 -10 -9 -8 -8 -7 -7 -7 -7 -6 -6 -6 -6 -6 -5 -5 -5 -5 -5 -4 -4 -4 -3 -------- Run | Yrd Mat Min Exi Min Mat Sto Fac Low Low Dat Pro Fac Low Low Zio Pro Fac Upp Upp War Pro Fac Ext Res Total Allies 17 | . 1 3 . . . . . . . . . . . . . . . . . . . . 13 . Largest Group 7 | . 1 4 1 1 1 1 1 1 1 1 1 1 1 1 1 1 1 1 1 1 1 1 7 5 Highest-Rated Group 408 | . 62 101 61 62 81 81 96 97 98 98 98 107 111 111 114 114 123 127 133 146 150 159 408 356 Highest-Rated Ally 187 | . 62 61 61 62 81 81 96 97 98 98 98 107 111 111 114 114 123 127 133 146 150 159 179 187 Total Orders 1 | . . . . . . . . . . . . . . . . . . . . . . . 1 . ROAM 1 | . . . . . . . . . . . . . . . . . . . . . . . 1 . Ally Attacks 292 | . 13 34 . 3 23 22 24 . 9 . 2 12 3 3 . 16 8 2 7 4 8 19 47 33 Total Damage 11856 | . 330 291 . 155 1037 776 1293 . 296 . 139 602 194 193 . 436 587 191 217 180 492 1475 1529 1443 Kills 108 | . 9 5 . 5 10 9 13 . . . . 3 1 2 . 3 4 2 . 2 2 8 12 18 Allies Corrupted 1 | . . 1 . . . . . . . . . . . . . . . . . . . . . . Allies Melted 1 | . . . . . . . . . . . . . . . . . . . . . . . 1 . Intel | -11 -10 -10 -10 -9 -8 -8 -7 -7 -7 -7 -6 -6 -6 -6 -6 -5 -5 -5 -5 -5 -4 -4 -4 -3 ------- Run | Yrd Mat Min Exi Min Mat Sto Fac Low Low Dat Pro Fac Low Low Zio Pro Fac Upp Upp War Pro Fac Ext Res Active Infowar (turns) 8205 | . . . . . . . . 299 672 89 324 111 291 . 542 471 296 370 308 756 324 713 1958 681 Optics 4498 | . . . . . . . . . . . . . . . . . . . 66 756 324 713 1958 681 Sensors 3706 | . . . . . . . . 299 672 89 324 111 291 . 541 471 296 370 242 . . . . . Cloaking 2 | . . . . . . . . . . . . . . . . . . . . 2 . . . . Jamming 679 | . . . . . . . . . . . . . . . . . . . . . . . . 679 ECM 1 | . . . . . . . . . . . . . . . 1 . . . . . . . . . Robot Analysis Total . | . . . . . . . . . . . . . . . . . . . . . . . . . Derelict Logs Recovered 15 | . . 1 . 1 . . . 1 . . 3 . 2 1 1 2 . 1 2 . . . . . Drone Launches . | . . . . . . . . . . . . . . . . . . . . . . . . . Drone Recoveries . | . . . . . . . . . . . . . . . . . . . . . . . . . Exploration | -11 -10 -10 -10 -9 -8 -8 -7 -7 -7 -7 -6 -6 -6 -6 -6 -5 -5 -5 -5 -5 -4 -4 -4 -3 ------------- Run | Yrd Mat Min Exi Min Mat Sto Fac Low Low Dat Pro Fac Low Low Zio Pro Fac Upp Upp War Pro Fac Ext Res Turns Passed 15507 | . 741 1132 499 848 546 493 627 323 729 90 325 577 587 306 1147 574 340 788 403 756 324 713 1958 681 Spaces Moved 9767 | 1 396 521 261 477 324 283 408 263 547 74 259 373 451 246 1060 416 174 497 248 609 235 360 858 426 Core 34 | . . . 34 . . . . . . . . . . . . . . . . . . . . . Treads . | . . . . . . . . . . . . . . . . . . . . . . . . . Legs 1208 | 1 396 521 227 63 . . . . . . . . . . . . . . . . . . . . Wheels 8356 | . . . . 414 324 283 408 263 547 74 259 373 451 246 1060 416 174 497 248 609 235 312 737 426 Hover . | . . . . . . . . . . . . . . . . . . . . . . . . . Flight 169 | . . . . . . . . . . . . . . . . . . . . . . 48 121 . Fastest Speed 50 | 120 120 120 50 130 107 107 105 120 120 120 120 102 102 102 102 102 102 102 102 102 102 115 120 120 Average Speed 119 | 120 122 120 187 156 120 109 111 120 122 120 120 118 102 102 102 102 102 102 102 102 109 138 148 120 Slowest Speed 400 | 120 190 120 330 400 126 140 135 135 135 120 120 120 135 102 102 102 102 102 102 102 116 350 250 120 Overloaded Moves . | . . . . . . . . . . . . . . . . . . . . . . . . . Propulsion Burnouts . | . . . . . . . . . . . . . . . . . . . . . . . . . Robots Hopped . | . . . . . . . . . . . . . . . . . . . . . . . . . Potential Cave-ins . | . . . . . . . . . . . . . . . . . . . . . . . . . Cave-ins Triggered . | . . . . . . . . . . . . . . . . . . . . . . . . . Exploration Rate (%) 49 | 2 66 86 52 96 28 43 15 45 74 68 49 9 69 43 79 61 5 70 41 86 53 12 81 11 Regions Visited 24 Branch Regions 17 Pre-discovered Areas 10 | . 2 . 1 . . 1 . 1 . 1 1 . . . 3 . . . . . . . . . Known Exits Taken 14 | . . . . . . . . . 1 1 1 1 1 1 1 1 1 1 1 . 1 1 1 . Unknown Exits Taken 10 | 1 1 1 1 1 1 1 1 1 . . . . . . . . . . . 1 . . . . Scrap Searched 23 | . . . . 2 . . . 1 3 . 2 . 3 2 3 3 . 1 2 . 1 . . . Spaces Dug 205 | . . . . . . 10 . . . . . . . . . . . . 7 . . 188 . . Terrain Destroyed 264 | . . . . . . 21 . . 2 . . . . . . 1 1 2 31 . . 206 . . Melee 3 | . . . . . . . . . . . . . . . . . . . . . . 3 . . Projectile 6 | . . . . . . . . . 2 . . . . . . . 1 2 . . . 1 . . AOE 255 | . . . . . . 21 . . . . . . . . . 1 . . 31 . . 202 . . Terrain Rammed . | . . . . . . . . . . . . . . . . . . . . . . . . . Walls Destroyed . | . . . . . . . . . . . . . . . . . . . . . . . . . Machines Disabled . | . . . . . . . . . . . . . . . . . . . . . . . . . Actions | -11 -10 -10 -10 -9 -8 -8 -7 -7 -7 -7 -6 -6 -6 -6 -6 -5 -5 -5 -5 -5 -4 -4 -4 -3 --------- Run | Yrd Mat Min Exi Min Mat Sto Fac Low Low Dat Pro Fac Low Low Zio Pro Fac Upp Upp War Pro Fac Ext Res Total 13265 | . 613 1009 274 541 425 423 549 273 601 76 273 493 572 296 1130 562 332 776 394 747 290 544 1484 588 Wait 2569 | . 163 471 . 29 54 40 83 . 14 . 9 67 107 45 44 110 133 258 109 93 35 92 471 142 Move 9743 | . 395 520 260 476 323 282 407 262 546 73 258 372 450 245 1059 415 173 496 247 608 234 359 857 426 Hop . | . . . . . . . . . . . . . . . . . . . . . . . . . Pick Up 69 | . 2 . 4 4 7 9 1 . 5 . 1 2 1 1 7 . . . 4 12 . 3 5 1 Fast Attach 72 | . 12 . . 3 6 15 5 . 3 . . 6 1 . 1 . 1 . 1 7 . 7 4 . Attach 130 | . 1 2 5 1 3 12 5 5 12 1 2 5 3 . 8 13 9 8 9 3 . 17 3 3 Detach 122 | . 5 . 4 . . 11 9 6 6 1 2 5 4 . 8 13 8 8 8 7 . 14 3 . Swap 32 | . 2 4 . 3 2 . . . . . . . . . . . . . . 1 11 1 5 3 Drop 87 | . 10 2 1 4 5 25 2 . 5 1 . 3 . . 3 . . . 4 11 . 5 4 2 Fire 358 | . 21 9 . 17 25 29 37 . 10 . 1 25 6 5 . 11 8 6 12 5 10 41 69 11 Melee 4 | . . . . . . . . . . . . . . . . . . . . . . 4 . . Ram 1 | . . . . . . . . . . . . . . . . . . . . . . 1 . . Kick 3 | . 2 1 . . . . . . . . . . . . . . . . . . . . . . Crush . | . . . . . . . . . . . . . . . . . . . . . . . . . Escape Stasis 8 | . . . . . . . . . . . . 8 . . . . . . . . . . . . Rewire 63 | . . . . . . . . . . . . . . . . . . . . . . . 63 . Trap 4 | . . . . 4 . . . . . . . . . . . . . . . . . . . . Miscellaneous . | . . . . . . . . . . . . . . . . . . . . . . . . . Route ------- -11/Scrapyard -10/Materials (discovered 3 exits: [*Mat x2] / [*Min]) -10/Mines (discovered 3 exits: [*Mat x2] / *Exi) -10/Exiles -9/Mines (discovered 2 exits: *Mat x2) -8/Materials (discovered 2 exits: *Fac / *Sto) -8/Storage -7/Factory (discovered 5 exits: Fac x4 / [*Low]) -7/Lower Caves -7/Lower Caves -7/Data Miner -6/Proximity Caves -6/Factory (discovered 2 exits: Fac / *Low) -6/Lower Caves -6/Lower Caves -6/Zion -5/Proximity Caves -5/Factory (discovered 2 exits: *Upp x2) -5/Upper Caves -5/Upper Caves (discovered 2 exits: Fac / *War) -5/Warlord -4/Proximity Caves -4/Factory (discovered 6 exits: *Res x2 / *Upp x2 / *Ext x2) -4/Extension -3/Research History --------- Turn | Location | Event 1 | -11/Scrapyard | Discovered new exit (range 0) 1 | -11/Scrapyard | Entered Materials 232 | -10/Materials | Discovered new exit (range 5) 313 | -10/Materials | Build established: Mutant 459 | -10/Materials | Discovered new exit (range 16) 689 | -10/Materials | Discovered new exit (range 8) 742 | -10/Materials | Entered Mines 788 | -10/Mines | Assisted by bots powering up and referring to "LRC-V3" 871 | -10/Mines | Assembled infested the area 876 | -10/Mines | Assisted by a Guerilla fighting off Assembled 952 | -10/Mines | Lost 3 allies 1588 | -10/Mines | Discovered new exit (range 15) 1669 | -10/Mines | Build established: Scavenger-Mutant 1741 | -10/Mines | Destroyed YI-UF0 1771 | -10/Mines | Discovered new exit (range 14) 1789 | -10/Mines | Learned Materials emergency access door positions 1854 | -10/Mines | Deemed a non-threat by the Exiles lab entrance 1855 | -10/Mines | Discovered new exit (range 5) 1874 | -10/Mines | Entered Exiles 1908 | -10/Exiles | Met 8R-AWN 1925 | -10/Exiles | Met EX-HEX 1963 | -10/Exiles | Met EX-BIN 1979 | -10/Exiles | Aligned with FarCom system 1980 | -10/Exiles | Given EX-Vault access code 1992 | -10/Exiles | Opened EX-Vault 1997 | -10/Exiles | Found AWS/Autocannon 2003 | -10/Exiles | Found Trap Reconfigurator 2014 | -10/Exiles | Found Flying Fortress v7 2067 | -10/Exiles | Warned to stay clear of 0b10 Research branches 2148 | -10/Exiles | Met EX-DEC 2158 | -10/Exiles | Learned location of Zion (-6) 2169 | -10/Exiles | Build established: Mutant 2334 | -10/Exiles | Discovered new exit (range 14) 2373 | -10/Exiles | Stole three prototypes: Flying Fortress v7, Trap Reconfigurator, AWS/Autocannon 2373 | -10/Exiles | Entered Mines 2375 | -9/Mines | Core integrity fell below 50% 2677 | -9/Mines | Build established: Scavenger-Mutant 2797 | -9/Mines | Found a damaged Exp. Sensor Array with a note attached 2799 | -9/Mines | Found Prototype Device 2896 | -9/Mines | Discovered new exit (range 8) 2959 | -9/Mines | Found a hidden stash of uninstalled traps 3019 | -9/Mines | Received a Rocket Launcher from a helpful Derelict 3138 | -9/Mines | Learned location of 1 exit from Proximity Caves 3174 | -9/Mines | Discovered new exit (range 12) 3221 | -9/Mines | Entered Materials 3221 | -8/Materials | Evolved 4 slots: Propulsion x2, Weapon x2 3533 | -8/Materials | Build established: Scavenger-Skirmisher 3713 | -8/Materials | Discovered new exit (range 16) 3736 | -8/Materials | Discovered new exit (range 14) 3767 | -8/Materials | Entered Storage 3769 | -8/Storage | FarCom data flow suspended 4054 | -8/Storage | Discovered new exit (range 16) 4260 | -8/Storage | Entered Factory 4260 | -7/Factory | Evolved 2 slots: Utility x2 4310 | -7/Factory | Identified Exp. Sensor Array 4439 | -7/Factory | Fabricated Imp. Shield Generator (x2) 4520 | -7/Factory | Garrison activated, responded to threat 4821 | -7/Factory | Identified exit to Factory 4821 | -7/Factory | Discovered new exit (range 6) 4887 | -7/Factory | Entered Lower Caves 5031 | -7/Lower Caves | Encountered a Warlord checkpoint 5165 | -7/Lower Caves | Discovered new exit (range 8) 5197 | -7/Lower Caves | Build established: Scavenger-Tank 5210 | -7/Lower Caves | Entered another Lower Caves area 5276 | -7/Lower Caves | Entered a destroyed Warlord outpost 5696 | -7/Lower Caves | Encountered a Master Thief 5696 | -7/Lower Caves | Encountered a Master Thief 5696 | -7/Lower Caves | Trap Reconfigurator stolen by Master Thief 5697 | -7/Lower Caves | Encountered a Master Thief 5698 | -7/Lower Caves | Encountered a Master Thief 5702 | -7/Lower Caves | AWS/Autocannon stolen by Master Thief 5709 | -7/Lower Caves | Imp. Shield Generator stolen by Master Thief 5711 | -7/Lower Caves | Weapon Cycler stolen by Master Thief 5775 | -7/Lower Caves | Discovered new exit (range 12) 5787 | -7/Lower Caves | Identified exit to Data Miner 5939 | -7/Lower Caves | Entered Data Miner 5939 | -7/Data Miner | Discovered new exit (range 6) 5962 | -7/Data Miner | Met Data Miner 5983 | -7/Data Miner | Learned location of Section 7 (-3) 5983 | -7/Data Miner | Acquired the access code to Warlord's prototype stash 6000 | -7/Data Miner | Received God Mode back door access code from Data Miner 6008 | -7/Data Miner | Build established: Scavenger-Skirmisher 6026 | -7/Data Miner | Identified exit to Proximity Caves 6029 | -7/Data Miner | Entered Proximity Caves 6039 | -6/Proximity Caves | Attracted the attention of an 0b10 checkpoint 6185 | -6/Proximity Caves | Learned location of 1 exit from Factory 6258 | -6/Proximity Caves | Learned Factory interactive machine intel 6354 | -6/Proximity Caves | Entered Factory 6354 | -6/Factory | Evolved 2 slots: Utility x2 6355 | -6/Factory | Identified exit to Factory 6356 | -6/Factory | Loaded intel: 54 interactive machine locations 6590 | -6/Factory | Discovered new exit (range 5) 6603 | -6/Factory | Identified exit to Lower Caves 6760 | -6/Factory | Build established: Scavenger-Gunner 6931 | -6/Factory | Entered Lower Caves 6932 | -6/Lower Caves | Encountered a Warlord checkpoint 7180 | -6/Lower Caves | Learned Factory emergency access door positions 7196 | -6/Lower Caves | Learned Factory emergency access door positions 7219 | -6/Lower Caves | Build established: Scavenger-Skirmisher 7257 | -6/Lower Caves | Spotted B-75 Beast 7273 | -6/Lower Caves | Allies destroyed B-75 Beast 7285 | -6/Lower Caves | Found DCF Scrap (12 items) 7487 | -6/Lower Caves | Discovered new exit (range 13) 7514 | -6/Lower Caves | Identified exit to Lower Caves 7518 | -6/Lower Caves | Entered another Lower Caves area 7596 | -6/Lower Caves | Build established: Scavenger-Tank 7754 | -6/Lower Caves | Learned Factory terminal intel 7786 | -6/Lower Caves | Discovered new exit (range 10) 7820 | -6/Lower Caves | Identified exit to Zion 7824 | -6/Lower Caves | Entered Zion 7869 | -6/Zion | Discovered new exit (range 12) 8257 | -6/Zion | Learned location of Warlord (-5) 8435 | -6/Zion | Visited the Megawrench Repair Shop 8435 | -6/Zion | Megawrench repaired 13 parts 8722 | -6/Zion | Build established: Scavenger-Skirmisher 8740 | -6/Zion | Given A8's code to call for help 8952 | -6/Zion | Identified exit to Proximity Caves 8971 | -6/Zion | Entered Proximity Caves 9112 | -5/Proximity Caves | Learned Factory emergency access door positions 9493 | -5/Proximity Caves | Discovered exit to Factory (range 14) 9545 | -5/Proximity Caves | Entered Factory 9545 | -5/Factory | Evolved 2 slots: Utility x2 9547 | -5/Factory | Loaded intel: 26 terminal locations 9811 | -5/Factory | Identified exit to Upper Caves 9885 | -5/Factory | Entered Upper Caves 10005 | -5/Upper Caves | Learned Factory terminal intel 10233 | -5/Upper Caves | Attracted the attention of an 0b10 checkpoint 10624 | -5/Upper Caves | Build established: Scavenger-Gunner 10649 | -5/Upper Caves | Discovered new exit (range 8) 10656 | -5/Upper Caves | Identified exit to Upper Caves 10673 | -5/Upper Caves | Entered another Upper Caves area 10674 | -5/Upper Caves | Identified exit to Warlord 10964 | -5/Upper Caves | Learned 4 Factory zone layouts 10965 | -5/Upper Caves | Identified exit to Factory 10986 | -5/Upper Caves | Encountered a Master Thief 10986 | -5/Upper Caves | Encountered a Master Thief 10986 | -5/Upper Caves | Encountered a Master Thief 10986 | -5/Upper Caves | Exp. Sensor Array stolen by Master Thief 10987 | -5/Upper Caves | Encountered a Master Thief 10988 | -5/Upper Caves | KE Penetrator stolen by Master Thief 11076 | -5/Upper Caves | Entered Warlord 11371 | -5/Warlord | Opened Warlord's prototype stash 11378 | -5/Warlord | Found Prototype Device 11378 | -5/Warlord | Identified Exp. Cloaking Device 11387 | -5/Warlord | Found Prototype Processor 11387 | -5/Warlord | Identified Spectral Analyzer 11462 | -5/Warlord | Found Prototype Reactor 11523 | -5/Warlord | Found Prototype Device 11599 | -5/Warlord | Visited the Vortex Lab 11602 | -5/Warlord | Found Prototype Energy Gun 11602 | -5/Warlord | Identified Vortex Rail 11605 | -5/Warlord | Found Vortex Rail 11607 | -5/Warlord | Warlord's base attacked by MAIN.C 11608 | -5/Warlord | Found Prototype Piercing Weapon 11610 | -5/Warlord | Found Prototype Energy Cannon 11612 | -5/Warlord | Found Prototype Energy Cannon 11614 | -5/Warlord | Found Prototype Launcher 11616 | -5/Warlord | Identified Vortex Cannon (x2) 11771 | -5/Warlord | Identified Vortex Lance 11784 | -5/Warlord | Opened side exit 11824 | -5/Warlord | Discovered new exit (range 9) 11832 | -5/Warlord | Entered Proximity Caves 12146 | -4/Proximity Caves | Discovered exit to Factory (range 6) 12156 | -4/Proximity Caves | Entered Factory 12156 | -4/Factory | Evolved 2 slots: Power x1, Utility x1 12157 | -4/Factory | Identified exit to Research 12157 | -4/Factory | Identified Vortex Chain Reactor 12159 | -4/Factory | Loaded intel: 27 terminal locations 12552 | -4/Factory | Identified exit to Upper Caves 12552 | -4/Factory | Identified exit to Extension 12642 | -4/Factory | Incoming investigation squad redirected 12664 | -4/Factory | Identified Vortex Catalyst Activator 12683 | -4/Factory | Lost 3 parts (3n) 12708 | -4/Factory | Discovered exit to Research (range 16) 12869 | -4/Factory | Entered Extension 12877 | -4/Extension | Rescued a captive Derelict 12879 | -4/Extension | Rescued a captive Derelict 12879 | -4/Extension | Rescued a captive Derelict 12880 | -4/Extension | Rescued a captive Derelict 12886 | -4/Extension | Rescued a captive Derelict 12886 | -4/Extension | Rescued a captive Derelict 12889 | -4/Extension | Rescued a captive Derelict 12893 | -4/Extension | Rescued a captive Derelict 12894 | -4/Extension | Rescued a captive Derelict 12896 | -4/Extension | Rescued a captive Derelict 12906 | -4/Extension | Rescued a captive Derelict 12906 | -4/Extension | Rescued a captive Derelict 12913 | -4/Extension | Rescued a captive Derelict 13041 | -4/Extension | Lost 3 allies 13363 | -4/Extension | Build established: Gunner 13652 | -4/Extension | Lost 3 allies 13659 | -4/Extension | Spotted B-86 Titan 13728 | -4/Extension | Destroyed B-86 Titan 13736 | -4/Extension | Discovered exit to Research (range 15) 13755 | -4/Extension | Extracted ID and sensor layout for unrecognized location from A7's data core 14451 | -4/Extension | Build established: Commander-Gunner 14691 | -4/Extension | Identified Minesniffer Drone Bay 14827 | -4/Extension | Entered Research 14827 | -3/Research | Accompanied by 4 allies 14827 | -3/Research | Evolved 2 slots: Weapon x2 15164 | -3/Research | Build established: Hacker-Executioner 15316 | -3/Research | Lost 3 allies 15508 | -3/Research | Self-destructed Last Messages --------------- System. 15465_ Player 2 removes Thermal Shield. 15466_ Player 2 removes Nanoactuators. 15466_ Player 2 removes Neutrino Core. 15467_ Player 2 attaches Imp. Core Shielding. 15468_ Player 2 attaches Adv. Point Defense System. 15469_ Player 2 attaches Thermal Shield. 15470_ Player 2 attaches Hpw. Tractor Beam. Player 2: "Why me?! Get the other guy!" 15474_ Player 2 attaches Neutrino Core. 15475_ K-01 Serf destroyed. 15480_ K-01 Serf collects debris. 15481_ K-01 Serf destroyed. 15481_ S-43 Plague destroyed. 15492_ R-10 Processor collects Unknown Ballistic Gun. 15495_ R-10 Processor collects Corrupted Lgt. Antimatter Reactor. 15503_ Enh. Autogun destroyed. Map ----- +----------------------------------------------------+ | ???????????????# #???????????????# | | ???????????????# ################# | | ???????????????# # """" + """ | | ?????????########## # """"" ####### """ | | ?????????# ! # # """" #?????# """ | | ?????????# # # """" #?????# """ | | ?????????# "" + !/ # ????# """ | | ?????????#] G" # # # ??# | | ?????????# "" # # # # | | ?????????# # # =# + | | ?????????# # ########### # ###### | | ?????????# !! # # # ??# #?? | | ?????????#= !! # # # ????# #? | | ?????????########## + """ #?????# #? | | ??????????????????# # """ #?????# # | | ??????????????????# # """ #?????# # """ | | ????????#########?# #? #?????# + """ | | ????????# ?# #? ! #?????# # """ | | ????????# # #?? #?????# # | | ????????# """"" # ###############?# #? | | ????????# """"" + # ] =!#?# #?#### | | ????????# """"" # # =!#?# #????? | | ????????# # # """Y""" ### #????? | | ????????# = ?# # """"""" Y## #????? | | ????????# [ ?# # #?# #????? | | ????????########??# # @ #?# #????? | | ??????????????????# ###+############# ###### | | ??????????????????# % | | ??????????????????# | | ??????????????????# | | ??????????????????# | | ??????????????????# ###+#############+######### | | ??????????????????# # ??????# %[%*[ #???? | | ???????########/### # ????# *===%%[ #???? | | # ! ??# !!=%%= #???? | | ?# # #?# "==*= #???? | | ?# # #?# ""%" % #???? | | ?# # """ #?# """" #???? | | ?#####+################# """ #?# # ?? | | ???????????????????????# """ #?# # = | | ???????????????????????###########?####+####"# | | ????????????????????????????????????????????## | | ?????????????????????????????????????????????# ?? | | ?????????????????????????????????????????????#???? | | ?????????????????????????????????????????????????? | | ?????????????????????????????????????## ########+# | | ??????????????????????????????????+ | | ???????????????????????????????????????????##### | | ???????????????????????????????????????????????# | | ???????????????????????????????????????????????# | +----------------------------------------------------+ Best States ------------- Heat Dissipation 70 Coolant Potential 120 Energy Generation 55 Energy Capacity 700 Matter Stores 300 Matter Capacity 300 Sight Range 24 Robot Scan Range 20 Terrain Scan Density 10 Jamming Range 16 Cloak Strength 4 Armor Coverage 300 Utility Shielding 66 Weapon Cycling 30 Phase Shifting 10 Evasion (%) 55 Target Analysis 9 Recoil Reduction 1 Offensive Hacking 10 Defensive Hacking 20 Authchip Count 5 Item Schematics ----------------- Mni. Grenade Launcher | -9/Mines | Hacked Imp. Propulsion Shielding | -8/Materials | Hacked Combat Drone Bay | -7/Data Miner | Free Lgt. Regenerative Plating | -7/Data Miner | Free Biomechanical Wings | -7/Data Miner | Free Tactical Coordination Suite | -6/Factory | Scanalyzed System Guard | -6/Zion | Archive Phase Cannon | -6/Zion | Archive Remote Force Field | -6/Zion | Archive Adv. Shield Generator | -6/Zion | Archive Hyp. Mass Driver | -6/Zion | Archive Railgun | -6/Zion | Archive Cloaking Device | -6/Zion | Archive Wave Gun | -6/Zion | Archive Robot Schematics ------------------ G-47 Trooper | -7/Data Miner | Free L-41 Fighter | -7/Data Miner | Free H-66 Slayer | -7/Data Miner | Free E-15 Imp | -6/Zion | Archive A-15 Conveyor | -6/Zion | Archive G-50 Soldier | -6/Zion | Archive Fabricated ------------ Imp. Shield Generator | x2 | -7/Factory | Preloaded Repaired ---------- Nothing Studied --------- Com. Wheel | -7/Factory | Hacked Alien Tech Used ----------------- None Achievements -------------- None Challenges ------------ None Player 2 | -11 -10 -10 -10 -9 -8 -8 -7 -7 -7 -7 -6 -6 -6 -6 -6 -5 -5 -5 -5 -5 -4 -4 -4 -3 ---------- Run | Yrd Mat Min Exi Min Mat Sto Fac Low Low Dat Pro Fac Low Low Zio Pro Fac Upp Upp War Pro Fac Ext Res Slots Evolved 14 | . . . . 4 . 2 . . . . 2 . . . . 2 . . . . 2 . 2 . Power 2 | . . . . 1 . . . . . . 1 . . . . . . . . . . . . . Propulsion 4 | . . . . 1 . 1 . . . . . . . . . . . . . . 1 . 1 . Utility 6 | . . . . 1 . . . . . . 1 . . . . 2 . . . . 1 . 1 . Weapon 2 | . . . . 1 . 1 . . . . . . . . . . . . . . . . . . Parts Attached 174 | . 10 . . 1 13 6 12 1 3 . . 12 4 1 2 1 11 3 2 6 3 29 29 25 Parts Lost 46 | . . . . . . . 3 . . . . 3 2 . . 3 1 . . . 2 9 11 12 Damage Taken 10259 | . 46 52 . 55 357 356 822 . 137 . 108 650 112 116 . 640 40 116 . 92 366 1755 2263 2176 Core 853 | . . 20 . 24 67 50 31 . . . 12 92 . 20 . 35 . . . 17 . 149 174 162 Player 2/Cogmind (%) 53 | . . 28 . 32 40 51 38 . . . 100 80 . 100 . 36 . . . 54 . 51 92 69 Absorbed by Shields 1142 | . . . . . . . . . . . . . . . . . . . . . . 510 632 . Damage Inflicted 10412 | . 330 24 . 155 1037 776 1293 . 296 . 139 602 194 193 . 436 587 191 217 180 492 1475 575 1220 Player 2/Cogmind (%) 37 | . 50 13 . 32 58 46 49 . 37 . 90 33 37 52 . 36 54 41 28 44 46 27 12 57 Combat Hostiles Destroyed 77 | . 5 1 . 3 10 9 9 . . . . 2 1 2 . 3 4 1 . 2 2 6 5 12 Player 2/Cogmind (%) 48 | . 50 33 . 60 62 75 50 . . . . 25 100 40 . 30 66 33 . 66 28 33 41 75 Game ------ Seed SapperInsulationWarhead Manual? 0 Play Time 01:51:47 Cumulative 1697.0 hours Start 2026.07.07 @ 01:13:48 End 2026.07.07 @ 08:28:11 Sessions 6 Manual Loads 0 Difficulty Rogue Special Mode AFD2020/Player2 Game No. 2801 Rogue 2794 Adventurer 0 Explorer 7 Win Type - Total 149 Types 40/17/58/3/3/5/21/1/1/0 Lore% 92 Gallery% 87 Achievement% 60 Wizard Run 0 Options --------- Layout 1 ASCII 0 Keyboard 1 Movement Numpad Keybinds 1 Fullscreen 2 Font 24/Smallcaps Map View 50x35 Zoom Use 0% Tactical HUD 1 Map Filters NONE Filters NONE Steam 1 RUN: 38798f9a-7e05-4703-9348-f2fe392194d9